bitfinex/quotes_SOLUSD_20250630
["timestamp","ask_amount","ask_price","bid_price","bid_amount"]
[1751299917302,6.30901772,158.51,158.44,12.60581165]
[1751299917303,6.30841172,158.52,158.47,12.60581165]
[1751299917514,18.91422337,158.52,158.47,12.60581165]
[1751299917845,13.26851172,158.52,158.44,12.60581165]
[1751299918138,12.60581165,158.5,158.45,12.60581165]
[1751299918302,12.89013479,158.51,158.46,12.60581165]
[1751299918920,12.60581165,158.5,158.41,222.09430878]
[1751299919126,12.60581165,158.5,158.45,12.60581165]
[1751299919436,12.60581165,158.49,158.44,12.60581165]
[1751299919642,12.60581165,158.5,158.45,12.60581165]
[1751299920016,19.01511564,158.5,158.45,12.60581165]
[1751299920222,12.70581165,158.5,158.46,12.60581165]
[1751299920417,0.1,158.5,158.46,12.60581165]
[1751299920623,12.70581165,158.5,158.46,12.60581165]
[1751299920825,0.1,158.5,158.46,12.60581165]
[1751299921033,0.1,158.5,158.48,12.60581165]
[1751299921336,0.1,158.5,158.49,12.60581165]
[1751299921630,0.1,158.5,158.44,6.31128528]
[1751299921828,12.60581165,158.49,158.44,18.91709693]
[1751299922036,12.70581165,158.5,158.45,12.60581165]
[1751299922536,19.01503132,158.5,158.45,18.91695049]
[1751299923332,12.60581165,158.47,158.44,7.28]
[1751299923510,12.60581165,158.46,158.44,7.28]
[1751299924311,0.28432314,158.49,158.44,7.28]
[1751299924634,12.60581165,158.46,158.44,7.28]
[1751299925010,18.91657404,158.46,158.44,7.28]
[1751299925816,0.28432314,158.49,158.44,7.28]
[1751299925817,12.60581165,158.47,158.44,7.28]
[1751299926012,18.91619582,158.47,158.44,7.28]
[1751299926219,18.9157781,158.48,158.44,7.28]
[1751299926628,17.72807066,158.5,158.44,7.28]
[1751299926629,20.8702905,158.5,158.45,12.60581165]
[1751299926835,12.60581165,158.48,158.44,7.28]
[1751299927030,12.60581165,158.46,158.44,7.28]
[1751299927244,12.60581165,158.47,158.44,7.28]
[1751299927443,12.60581165,158.48,158.44,7.28]
[1751299927638,20.8702905,158.5,158.45,12.60581165]
[1751299927846,0.1,158.5,158.46,12.60581165]
[1751299928048,0.1,158.5,158.44,7.28]
[1751299928049,0.14216157,158.49,158.44,7.28]
[1751299928354,12.60581165,158.47,158.44,7.28]
[1751299928566,12.70581165,158.5,158.45,12.60581165]
[1751299928873,0.1,158.5,158.49,12.60581165]
[1751299929332,0.1,158.5,158.49,20.01071165]
[1751299929751,0.1,158.5,158.49,38.60581165]
[1751299929931,0.1,158.5,158.49,34.10855613]
[1751299930253,0.1,158.5,158.49,8.10855613]
[1751299930951,0.1,158.5,158.48,8.10855613]
[1751299930952,6.40926141,158.5,158.48,8.10855613]
[1751299931140,0.1,158.5,158.48,8.10855613]
[1751299931670,6.40925786,158.5,158.47,8.10855613]
[1751299931863,6.40925786,158.5,158.47,12.59055676]
[1751299932543,0.1,158.5,158.47,12.59055676]
[1751299932745,0.1,158.5,158.48,12.59055676]
[1751299933039,0.1,158.5,158.49,12.59055676]
[1751299933566,0.1,158.5,158.46,13.5906054]
[1751299933739,0.1,158.5,158.48,12.59055676]
[1751299935032,0.1,158.5,158.49,12.59055676]
[1751299936846,0.1,158.5,158.43,0.63119358]
[1751299936847,18.99983443,158.5,158.44,7.28]
[1751299937048,12.59055676,158.47,158.44,7.28]
[1751299937661,0.28432314,158.49,158.44,7.28]
[1751299937865,0.1,158.5,158.44,13.59143816]
[1751299938041,0.1,158.5,158.46,12.59055676]
[1751299938356,0.1,158.5,158.44,13.59143816]
[1751299938357,0.1,158.5,158.47,12.59055676]
[1751299939334,0.1,158.5,158.48,12.59055676]
[1751299939741,0.1,158.5,158.45,6.31099154]
[1751299939941,6.40933461,158.5,158.47,12.59055676]
[1751299940264,6.40933461,158.5,158.44,19.87055676]
[1751299940573,12.59055676,158.49,158.45,12.59055676]
[1751299940735,12.59055676,158.49,158.44,19.87055676]
[1751299941135,6.30994447,158.48,158.44,19.87055676]
[1751299941360,6.30994447,158.48,158.44,7.28]
[1751299941659,6.30994447,158.48,158.44,19.87055676]
[1751299941973,12.59055676,158.46,158.39,3.23267062]
[1751299942252,22.08480565,158.48,158.39,3.23267062]
[1751299942253,12.59055676,158.45,158.4,12.59055676]
[1751299942455,12.59055676,158.46,158.41,212.59055676]
[1751299943040,6.31113916,158.45,158.41,212.59055676]
[1751299943369,0.28432314,158.49,158.41,200.0]
[1751299943572,12.59055676,158.47,158.42,12.59055676]
[1751299943731,0.28432314,158.47,158.43,12.59055676]
[1751299943937,12.8748799,158.47,158.42,12.59055676]
[1751299944849,6.30994447,158.48,158.43,12.59055676]
[1751299945059,18.90050123,158.48,158.43,12.59055676]
[1751299945246,6.30994447,158.48,158.44,12.59055676]
[1751299945462,6.30994447,158.48,158.45,12.59055676]
[1751299945638,6.40921265,158.5,158.46,12.59055676]
[1751299946476,18.99980344,158.5,158.42,6.31225438]
[1751299946754,12.59055676,158.43,158.41,200.0]
[1751299946956,12.59055676,158.42,158.41,200.0]
[1751299947159,6.31166495,158.44,158.41,200.0]
[1751299947344,18.90169592,158.45,158.41,212.59055676]
[1751299947861,8.23776155,158.5,158.44,12.59055676]
[1751299948035,0.1,158.5,158.47,12.59055676]
[1751299948241,0.1,158.5,158.48,12.59055676]
[1751299948758,6.40927247,158.5,158.44,7.24]
[1751299948950,0.1,158.5,158.47,12.59055676]
[1751299949159,0.1,158.5,158.48,12.59055676]
[1751299949961,0.1,158.5,158.45,6.3110797]
[1751299950163,0.1,158.5,158.48,12.59055676]
[1751299950473,0.1,158.5,158.47,12.59055676]
[1751299950860,18.99992838,158.5,158.44,7.24]
[1751299951062,18.99992838,158.5,158.45,12.59055676]
[1751299951252,6.40937162,158.5,158.46,12.59055676]
[1751299951562,6.40937162,158.5,158.47,12.59055676]
[1751299951760,6.40937162,158.5,158.47,8.11254858]
[1751299951761,0.1,158.5,158.47,8.11254858]
[1751299951970,0.1,158.5,158.48,8.11254858]
[1751299952367,0.1,158.5,158.49,8.11254858]
[1751299952567,0.1,158.5,158.48,8.11254858]
[1751299952961,0.1,158.5,158.45,6.31112172]
[1751299953273,0.1,158.5,158.49,14.42209492]
[1751299953473,0.1,158.5,158.49,8.11254858]
[1751299953875,0.1,158.5,158.49,14.42209492]
[1751299955252,0.1,158.5,158.49,40.42209492]
[1751299955454,0.1,158.5,158.49,32.30954634]
[1751299955762,0.1,158.5,158.49,14.42209492]
[1751299957167,0.1,158.5,158.48,6.30994447]
[1751299957374,0.1,158.5,158.49,8.11254858]
[1751299958765,0.1,158.5,158.45,32.31113916]
[1751299958977,0.1,158.5,158.49,8.11254858]
[1751299959167,0.1,158.5,158.49,14.42209492]
[1751299959369,8.11254858,158.58,158.49,34.80954634]
[1751299959876,8.11254858,158.58,158.53,8.11254858]
[1751299960067,8.11254858,158.58,158.54,28.5]
[1751299961475,22.35332095,158.6,158.54,28.5]
[1751299961676,8.11254858,158.57,158.54,28.5]
[1751299961997,22.35332095,158.6,158.54,28.5]
[1751299961998,8.11254858,158.56,158.54,28.5]
[1751299962171,0.28432314,158.55,158.51,28.48]
[1751299962488,6.30596544,158.58,158.51,28.48]
[1751299962786,6.30596544,158.58,158.55,8.11254858]
[1751299962977,6.30596544,158.58,158.55,36.59254858]
[1751299963175,6.30596544,158.58,158.55,28.48]
[1751299963562,0.28432314,158.57,158.52,7.22]
[1751299963767,14.41851402,158.58,158.53,8.11254858]
[1751299964192,14.41851402,158.58,158.52,35.7]
[1751299964382,14.41851402,158.58,158.53,8.11254858]
[1751299964870,14.41851402,158.58,158.52,35.7]
[1751299965196,8.39687172,158.56,158.52,7.22]
[1751299965372,0.28432314,158.56,158.43,1.7343]
[1751299965572,0.28432314,158.56,158.52,8.11254858]
[1751299965798,8.39687172,158.56,158.51,36.59254858]
[1751299966001,8.11254858,158.55,158.51,28.48]
[1751299966500,6.30755645,158.54,158.5,8.11254858]
[1751299966699,6.30755645,158.54,158.5,36.59254858]
[1751299966901,6.30730836,158.55,158.52,8.11254858]
[1751299967271,8.11254858,158.58,158.53,8.11254858]
[1751299967490,0.28432314,158.57,158.5,34.78907881]
[1751299967795,0.28432314,158.57,158.54,8.11254858]
[1751299968089,6.30596544,158.58,158.54,36.59254858]
[1751299968995,0.28432314,158.57,158.54,28.48]
[1751299969575,0.1,158.59,158.56,8.11254858]
[1751299969806,0.1,158.59,158.54,34.78749989]
[1751299969807,0.1,158.59,158.58,8.11254858]
[1751299969980,0.1,158.59,158.55,8.11254858]
[1751299970295,0.1,158.59,158.54,28.48]
[1751299970481,6.30596544,158.58,158.55,8.11254858]
[1751299970682,6.30596544,158.58,158.54,28.48]
[1751299970885,6.40564224,158.59,158.54,28.48]
[1751299973198,14.51819082,158.59,158.54,36.59254858]
[1751299973685,14.51819082,158.59,158.55,8.11254858]
[1751299974404,14.51819082,158.59,158.54,36.59254858]
[1751299974584,6.40564224,158.59,158.55,8.11254858]
[1751299975390,6.40564224,158.59,158.54,28.48]
[1751299975391,0.1,158.59,158.57,8.11254858]
[1751299975596,0.1,158.59,158.58,28.44]
[1751299975891,0.1,158.59,158.57,28.44]
[1751299976296,6.40561258,158.59,158.57,36.55254858]
[1751299976482,6.40561258,158.59,158.57,28.44]
[1751299980092,0.1,158.59,158.58,8.11254858]
[1751299981184,0.1,158.59,158.57,28.44]
[1751299981381,6.40558883,158.59,158.55,26.0]
[1751299981580,6.40558883,158.59,158.57,28.44]
[1751299981780,8.11254858,158.58,158.53,8.11254858]
[1751299982094,8.11254858,158.58,158.55,28.42]
[1751299983004,6.40558883,158.59,158.55,36.53254858]
[1751299983203,6.40562504,158.59,158.56,8.11254858]
[1751299983409,6.40562504,158.59,158.55,36.53254858]
[1751299983704,0.1,158.59,158.55,36.53254858]
[1751299984407,0.1,158.59,158.56,8.11254858]
[1751299984594,6.40557238,158.59,158.55,54.42]
[1751299985979,6.40557238,158.59,158.55,28.42]
[1751299985980,8.11254858,158.58,158.55,28.42]
[1751299986504,8.11254858,158.57,158.54,28.42]
[1751299987019,8.39687172,158.58,158.53,8.11254858]
[1751299987319,6.30636312,158.57,158.54,28.42]
[1751299988218,8.39687172,158.58,158.54,36.53254858]
[1751299988219,6.59039663,158.58,158.54,36.53254858]
[1751299988913,14.70294521,158.58,158.54,28.42]
[1751299989422,6.59039663,158.58,158.54,36.53254858]
[1751299990223,8.11254858,158.55,158.52,7.18]
[1751299990520,8.11254858,158.53,158.52,7.18]
[1751299990823,0.28432314,158.57,158.52,15.29254858]
[1751299991019,8.11254858,158.53,158.52,7.18]
[1751299991201,8.11254858,158.53,158.49,100.0]
[1751299991202,22.07923289,158.52,158.49,100.0]
[1751299991522,6.30835225,158.52,158.49,100.0]
[1751299991695,14.42090083,158.52,158.49,100.0]
[1751299991895,14.42058618,158.53,158.49,100.0]
[1751299992107,14.42020735,158.54,158.5,8.11254858]
[1751299992313,8.11254858,158.52,158.49,100.0]
[1751299992524,0.28432314,158.53,158.49,100.0]
[1751299992725,14.42020735,158.54,158.49,108.11254858]
[1751299992894,8.11254858,158.55,158.5,8.11254858]
[1751299993094,8.11254858,158.55,158.49,106.30945463]
[1751299993095,6.59125152,158.56,158.52,8.11254858]
[1751299993295,0.28432314,158.56,158.52,14.42086012]
[1751299993491,8.7987,158.59,158.55,8.11254858]
[1751299993712,6.40568105,158.59,158.55,36.51254858]
[1751299993997,0.28432314,158.58,158.55,36.51254858]
[1751299994312,6.40568105,158.59,158.56,8.11254858]
[1751299994313,0.1,158.59,158.56,8.11254858]
[1751299994529,0.1,158.59,158.58,8.11254858]
[1751299994729,0.1,158.59,158.58,28.4]
[1751299995038,0.1,158.59,158.56,36.51254858]
[1751299995631,14.51820299,158.59,158.56,28.4]
[1751299995805,14.51820299,158.59,158.54,43.69254858]
[1751299996408,6.40565441,158.59,158.55,8.11254858]
[1751299996600,14.51820299,158.59,158.54,43.69254858]
[1751299996797,14.51820299,158.59,158.54,35.58]
[1751299996798,8.11254858,158.57,158.54,35.58]
[1751299997006,8.11254858,158.57,158.54,7.18]
[1751299997214,6.30676084,158.56,158.54,7.18]
[1751299997813,6.30596544,158.58,158.54,15.29254858]
[1751299998321,14.41851402,158.58,158.54,7.18]
[1751299998620,8.11254858,158.57,158.54,7.18]
[1751299999097,14.41851402,158.58,158.54,7.18]
[1751300001143,6.30596544,158.58,158.54,7.18]
[1751300001424,14.41851402,158.58,158.54,7.18]
[1751300002200,0.1,158.59,158.57,8.11254858]
[1751300002800,0.1,158.59,158.58,8.11254858]
[1751300003020,0.1,158.59,158.58,62.47254858]
[1751300003615,0.1,158.59,158.58,54.36]
[1751300003816,0.1,158.59,158.58,62.47254858]
[1751300004825,0.1,158.59,158.58,28.36]
[1751300005011,6.40556781,158.59,158.55,8.11254858]
[1751300005317,0.1,158.59,158.56,36.47254858]
[1751300005601,6.40560932,158.59,158.56,36.47254858]
[1751300005808,6.40560932,158.59,158.56,8.11254858]
[1751300006030,8.11254858,158.58,158.54,7.18]
[1751300006209,6.30636312,158.57,158.54,7.18]
[1751300006412,14.4189117,158.57,158.54,7.18]
[1751300006737,8.11254858,158.56,158.54,7.18]
[1751300006942,14.4189117,158.57,158.55,0.2]
[1751300007233,6.30636312,158.57,158.55,0.2]
[1751300007435,8.11254858,158.56,158.55,0.2]
[1751300008304,6.30676084,158.56,158.55,0.2]
[1751300008723,25.24073284,158.56,158.55,0.2]
[1751300008937,33.35328142,158.56,158.55,0.2]
[1751300014247,25.24073284,158.56,158.55,0.2]
[1751300014440,33.35328142,158.56,158.55,0.2]
[1751300015412,6.30676084,158.56,158.55,0.2]
[1751300015721,14.41930942,158.56,158.55,0.2]
[1751300016035,14.70363256,158.56,158.55,0.2]
[1751300017748,6.59108398,158.56,158.55,0.2]
[1751300017917,14.70363256,158.56,158.55,0.2]
[1751300019255,33.35328142,158.56,158.55,0.2]
[1751300019417,25.24073284,158.56,158.55,0.2]
[1751300019622,33.35328142,158.56,158.55,0.2]
[1751300020218,25.24073284,158.56,158.55,0.2]
[1751300020542,6.30676084,158.56,158.55,0.2]
[1751300020734,14.41930942,158.56,158.55,0.2]
[1751300020931,6.30676084,158.56,158.55,0.2]
[1751300021239,14.41930942,158.56,158.55,0.2]
[1751300021444,6.30636312,158.57,158.55,0.2]
[1751300021640,8.11254858,158.56,158.55,0.2]
[1751300023336,6.30636312,158.57,158.55,0.2]
[1751300023535,14.4189117,158.57,158.55,0.2]
[1751300024647,27.04652058,158.56,158.55,0.2]
[1751300025529,33.35328142,158.56,158.55,0.2]
[1751300025940,18.933972,158.55,158.49,100.0]
[1751300026260,8.39687172,158.5,158.49,100.0]
[1751300026455,27.04652058,158.5,158.49,100.0]
[1751300027548,33.35566884,158.5,158.49,100.0]
[1751300028238,14.70601998,158.5,158.49,100.0]
[1751300030866,22.81856856,158.5,158.49,100.0]
[1751300031758,14.70601998,158.5,158.49,100.0]
[1751300032440,8.11254858,158.51,158.49,100.0]
[1751300032642,18.64964886,158.54,158.49,100.0]
[1751300032643,8.11254858,158.5,158.49,100.0]
[1751300033053,8.39687172,158.5,158.49,100.0]
[1751300033950,14.70601998,158.5,158.49,100.0]
[1751300034157,6.5934714,158.5,158.49,100.0]
[1751300034461,14.70601998,158.5,158.49,100.0]
[1751300035542,4.8683407,158.54,158.49,100.0]
[1751300035543,18.64964886,158.54,158.49,100.0]
[1751300035743,14.42050291,158.53,158.49,100.0]
[1751300035949,14.42050291,158.53,158.49,108.11254858]
[1751300035950,0.28432314,158.52,158.49,108.11254858]
[1751300036159,0.28432314,158.52,158.49,136.39254858]
[1751300036349,6.30795433,158.53,158.49,136.39254858]
[1751300036859,6.30795433,158.53,158.49,128.28]
[1751300037076,0.28432314,158.52,158.49,136.39254858]
[1751300037369,0.28432314,158.52,158.49,128.28]
[1751300037869,8.11254858,158.51,158.49,100.0]
[1751300038340,27.04652058,158.52,158.49,100.0]
[1751300038872,6.30875023,158.51,158.49,100.0]
[1751300039246,0.28432314,158.5,158.49,100.0]
[1751300039776,27.04652058,158.5,158.49,100.0]
[1751300040485,18.933972,158.5,158.49,100.0]
[1751300040663,27.04652058,158.5,158.49,100.0]
[1751300040865,41.46821742,158.5,158.49,100.0]
[1751300041070,44.933972,158.48,158.47,0.2]
[1751300041382,53.04652058,158.48,158.47,0.2]
[1751300041748,27.04652058,158.48,158.47,0.2]
[1751300042077,53.04652058,158.48,158.47,0.2]
[1751300042285,18.933972,158.45,158.41,200.0]
[1751300042445,27.04652058,158.42,158.41,200.0]
[1751300042643,18.933972,158.42,158.41,200.0]
[1751300042843,25.2463063,158.42,158.41,200.0]
[1751300043151,6.3123343,158.42,158.41,200.0]
[1751300043975,18.64964886,158.46,158.41,208.11254858]
[1751300044184,6.31047439,158.47,158.44,8.11254858]
[1751300044471,26.76219744,158.47,158.42,28.24]
[1751300044683,8.39687172,158.46,158.42,36.35254858]
[1751300044975,6.31113916,158.45,158.42,36.35254858]
[1751300045277,6.31113916,158.45,158.42,28.24]
[1751300045874,6.31113916,158.45,158.42,36.35254858]
[1751300047077,6.31074088,158.46,158.42,36.35254858]
[1751300048858,14.42328946,158.46,158.42,28.24]
[1751300049064,8.11254858,158.44,158.41,200.0]
[1751300049768,18.933972,158.45,158.41,200.0]
[1751300049995,6.70645094,158.48,158.44,8.11254858]
[1751300050170,6.70645094,158.48,158.45,8.11254858]
[1751300050507,21.12906228,158.48,158.44,28.22]
[1751300050861,6.31074088,158.46,158.44,28.22]
[1751300052697,18.933972,158.45,158.41,200.0]
[1751300052884,24.4136798,158.45,158.41,200.0]
[1751300053195,6.31153749,158.44,158.41,205.4797078]
[1751300053480,6.31153749,158.44,158.41,200.0]
[1751300054763,24.4136798,158.43,158.41,200.0]
[1751300054961,24.4136798,158.43,158.41,130.04866465]
[1751300054962,43.55607304,158.42,158.41,130.04866465]
[1751300055265,18.933972,158.41,158.29,0.2]
[1751300055468,5.4797078,158.33,158.29,0.2]
[1751300055697,24.4136798,158.33,158.29,0.2]
[1751300055866,27.06999937,158.33,158.29,0.2]
[1751300056285,18.933972,158.33,158.29,0.2]
[1751300056471,27.06999937,158.33,158.29,0.2]
[1751300057067,33.38592181,158.33,158.29,0.2]
[1751300058666,18.933972,158.32,158.29,0.2]
[1751300058867,30.24175591,158.33,158.29,0.2]
[1751300058868,35.20602674,158.3,158.29,0.2]
[1751300059285,33.38711876,158.3,158.29,0.2]
[1751300060507,18.933972,158.29,158.25,0.2]
[1751300060679,27.06999937,158.26,158.25,0.2]
[1751300061271,18.933972,158.25,158.18,8.13602737]
[1751300061574,8.13602737,158.23,158.18,8.13602737]
[1751300061781,8.13602737,158.22,158.17,8.13602737]
[1751300061981,18.933972,158.25,158.16,7.49]
[1751300061982,8.13602737,158.23,158.18,8.13602737]
[1751300062704,8.13602737,158.24,158.19,8.33602737]
[1751300063415,6.31991404,158.23,158.19,0.2]
[1751300063593,14.45594141,158.23,158.19,0.2]
[1751300064796,6.31991404,158.23,158.19,8.33602737]
[1751300065702,6.31991404,158.23,158.2,8.13602737]
[1751300067315,6.31991404,158.23,158.19,0.2]
[1751300067484,6.31991404,158.23,158.19,8.33602737]
[1751300068405,14.45594141,158.23,158.19,8.33602737]
[1751300069205,6.31991404,158.23,158.19,8.33602737]
[1751300069799,30.25572653,158.23,158.19,0.2]
[1751300069997,8.13602737,158.21,158.19,0.2]
[1751300070787,22.11969916,158.23,158.19,0.2]
[1751300070788,8.13602737,158.22,158.19,0.2]
[1751300071381,8.13602737,158.21,158.19,0.2]
[1751300072485,8.13602737,158.2,158.19,0.2]
[1751300072810,27.06999937,158.2,158.19,0.2]
[1751300073503,33.39111188,158.2,158.19,0.2]
[1751300073902,41.52713925,158.2,158.19,0.2]
[1751300074487,71.52713925,158.2,158.19,0.2]
[1751300075324,63.39111188,158.2,158.19,0.2]
[1751300075889,71.52713925,158.2,158.19,0.2]
[1751300076707,76.36774748,158.2,158.19,0.2]
[1751300076906,8.13602737,158.14,158.09,8.13602737]
[1751300077112,44.64964886,158.19,158.07,27.819]
[1751300077113,8.13602737,158.12,158.07,27.819]
[1751300077292,8.13602737,158.12,158.08,8.13602737]
[1751300077503,6.32471064,158.11,158.08,8.13602737]
[1751300078706,6.32471064,158.11,158.08,8.13602737]
[1751300078892,30.27251462,158.11,158.07,1.819]
[1751300079520,6.3239107,158.13,158.1,8.13602737]
[1751300079690,6.3239107,158.13,158.11,8.13602737]
[1751300079896,6.3239107,158.13,158.1,8.13602737]
[1751300080551,8.13602737,158.12,158.07,9.95502737]
[1751300080721,22.13368746,158.13,158.07,9.95502737]
[1751300081020,6.32471064,158.11,158.08,8.13602737]
[1751300081598,31.6136383,158.16,158.1,8.13602737]
[1751300081599,22.13007667,158.16,158.1,8.13602737]
[1751300081797,22.13007667,158.16,158.13,8.13602737]
[1751300081991,6.32271117,158.16,158.13,8.13602737]
[1751300082216,6.3215121,158.19,158.15,10.00322737]
[1751300082495,6.3215121,158.19,158.18,8.13602737]
[1751300082730,6.3215121,158.19,158.17,8.13602737]
[1751300083037,18.64964886,158.19,158.15,1.8672]
[1751300083198,18.64964886,158.19,158.12,8.13602737]
[1751300083199,8.13602737,158.16,158.12,8.13602737]
[1751300083532,18.64964886,158.16,158.11,27.758]
[1751300083822,22.12389379,158.2,158.15,8.13602737]
[1751300083991,22.12389379,158.2,158.16,8.13602737]
[1751300084195,30.25992116,158.2,158.15,8.13602737]
[1751300084407,18.64964886,158.19,158.11,1.758]
[1751300084614,18.64964886,158.19,158.12,8.13602737]
[1751300084615,8.13602737,158.16,158.12,8.13602737]
[1751300084908,6.32191174,158.18,158.11,1.758]
[1751300085520,6.32191174,158.18,158.13,26.0]
[1751300085915,6.32191174,158.18,158.17,8.13602737]
[1751300086526,15.80209932,158.21,158.17,8.13602737]
[1751300086728,8.13602737,158.23,158.19,8.13602737]
[1751300087035,8.13602737,158.23,158.18,8.13602737]
[1751300087036,6.32031348,158.22,158.18,8.13602737]
[1751300087536,8.13602737,158.23,158.21,8.13602737]
[1751300087537,6.32006429,158.23,158.21,8.13602737]
[1751300087740,13.12461911,158.24,158.22,8.13602737]
[1751300088061,21.26064648,158.24,158.19,1.9531]
[1751300088225,21.26064648,158.24,158.2,8.13602737]
[1751300088642,13.12461911,158.24,158.19,1.9531]
[1751300088942,28.92340576,158.24,158.21,8.13602737]
[1751300089117,28.92340576,158.24,158.19,1.9531]
[1751300089316,37.05943313,158.24,158.2,8.13602737]
[1751300089515,28.92340576,158.24,158.2,8.13602737]
[1751300089734,28.92340576,158.24,158.19,1.9531]
[1751300089943,28.92340576,158.24,158.22,8.13602737]
[1751300090250,28.92340576,158.24,158.21,8.13602737]
[1751300090423,28.92340576,158.24,158.2,8.13602737]
[1751300091544,28.92340576,158.24,158.21,8.13602737]
[1751300092126,6.31968532,158.24,158.19,1.9531]
[1751300092332,6.31968532,158.24,158.17,26.0]
[1751300092333,8.13602737,158.22,158.17,34.13602737]
[1751300093333,6.32071297,158.21,158.17,26.0]
[1751300093644,30.25852278,158.21,158.17,26.0]
[1751300093945,30.25852278,158.21,158.16,8.13602737]
[1751300094656,8.13602737,158.2,158.15,36.11132737]
[1751300094838,8.13602737,158.2,158.15,10.11132737]
[1751300095029,8.13602737,158.2,158.15,1.9753]
[1751300095223,8.13602737,158.2,158.15,10.11132737]
[1751300095429,6.3215121,158.19,158.15,10.11132737]
[1751300095744,6.3215121,158.19,158.15,1.9753]
[1751300095946,6.3215121,158.19,158.15,10.11132737]
[1751300096155,6.3215121,158.19,158.16,8.13602737]
[1751300096759,8.13602737,158.18,158.14,7.02]
[1751300096958,18.64964886,158.14,158.12,0.2]
[1751300097147,8.13602737,158.13,158.12,0.2]
[1751300097330,14.45993807,158.13,158.12,0.2]
[1751300100556,0.1,158.25,158.13,26.0]
[1751300100730,8.13602737,158.19,158.14,8.13602737]
[1751300100931,8.13602737,158.17,158.12,35.28]
[1751300101131,18.64964886,158.16,158.12,7.16]
[1751300101325,6.32311097,158.15,158.12,15.29602737]
[1751300101551,6.32311097,158.15,158.13,8.13602737]
[1751300101851,6.32311097,158.15,158.12,0.2]
[1751300102052,6.32311097,158.15,158.13,8.13602737]
[1751300102350,6.32311097,158.15,158.14,8.13602737]
[1751300102527,6.32311097,158.15,158.12,0.2]
[1751300102853,18.64964886,158.14,158.12,0.2]
[1751300103442,6.3239107,158.13,158.12,0.2]
[1751300104179,33.39391007,158.13,158.12,0.2]
[1751300105149,25.2578827,158.13,158.12,0.2]
[1751300106156,6.3239107,158.13,158.12,0.2]
[1751300106341,14.45993807,158.13,158.12,0.2]
[1751300106537,14.60209964,158.13,158.12,0.2]
[1751300106730,14.74426121,158.13,158.12,0.2]
[1751300109331,63.39391007,158.13,158.12,0.2]
[1751300111363,18.933972,158.12,158.03,2.0031]
[1751300111651,6.32631112,158.07,158.03,10.13912737]
[1751300111863,30.2781163,158.07,158.03,2.0031]
[1751300112434,22.14208893,158.07,158.03,10.13912737]
[1751300113246,30.2781163,158.07,158.03,10.13912737]
[1751300113660,22.14208893,158.07,158.04,8.13602737]
[1751300113865,6.32631112,158.07,158.06,8.13602737]
[1751300114361,6.32631112,158.07,158.03,2.0031]
[1751300115249,6.79211262,158.1,158.06,8.13602737]
[1751300115439,6.32551078,158.09,158.07,8.13602737]
[1751300115742,6.32551078,158.09,158.03,2.0031]
[1751300115743,8.13602737,158.08,158.03,2.0031]
[1751300115950,22.13928774,158.09,158.03,2.0031]
[1751300115951,22.13928774,158.09,158.04,8.13602737]
[1751300116136,22.13928774,158.09,158.05,8.13602737]
[1751300116334,18.64964886,158.08,158.05,8.13602737]
[1751300116546,18.64964886,158.08,158.04,8.13602737]
[1751300116742,30.27531511,158.09,158.07,8.13602737]
[1751300116743,6.32551078,158.09,158.07,8.13602737]
[1751300116952,6.79211262,158.1,158.08,34.13602737]
[1751300117147,6.79211262,158.1,158.09,8.13602737]
[1751300118461,34.23602737,158.19,158.09,22.59756552]
[1751300118462,0.1,158.19,158.09,22.59756552]
[1751300118766,6.32191174,158.18,158.11,26.0]
[1751300118935,6.32191174,158.18,158.13,26.0]
[1751300120071,6.32191174,158.18,158.17,8.13602737]
[1751300120576,6.32191174,158.18,158.13,26.0]
[1751300120739,6.32191174,158.18,158.15,8.13602737]
[1751300120740,40.77633996,158.18,158.15,8.13602737]
[1751300120938,18.64964886,158.1,158.04,5.7092844]
[1751300121177,18.64964886,158.1,157.99,1.9895]
[1751300121178,8.13602737,158.07,158.02,8.13602737]
[1751300121347,26.78567623,158.07,158.02,8.13602737]
[1751300121550,22.1434898,158.06,157.99,1.9895]
[1751300121765,22.1434898,158.06,158.03,8.13602737]